Cogmind - Beta 16.1 @@@ ROGUE MODE // 2026.02.14 @ 15:10:40 Player: Starcat Lazuli Result: Destroyed by H-66 Slayer with Heavy Assault Rifle Performance ------------- Evolutions (4) 2000 Regions Visited (6) 1200 Robots Destroyed (14) 70 Value Destroyed (391) 391 Prototype IDs (1) 20 Alien Tech Used (0) 0 Bonus (925) 925 TOTAL SCORE: 4606 Bonus ------- Follower Combat Kills 125 Registered with UFD 300 Met Optimus in HQ 500 Cogmind --------- Core Integrity 0/850 Matter 300/300 Energy 160/160 System Corruption 16% Temperature Cool (0) Movement Core (200) Ox3 Location -6/Factory Parts ------- > --- POWER (3) -------- Light Fission Core > --- PROPULSION (4) --- (None) > --- UTILITY (6) ------ Enhanced Optical Array Improved Melee Analysis Suite Advanced Melee Analysis Suite A0-MCA's Component Scanner > --- WEAPON (2) ------- Companion Sword > --- INVENTORY (5) ---- ECM Suite Makeshift Hacking Suite EM Pulse Gun Advanced Assault Cannon DRS Beacon (Ready) Peak State ------------ > --- POWER ------------ Micro Nuclear Core Micro Nuclear Core > --- PROPULSION ------- Gravmag System Gravmag System > --- UTILITY ---------- Scrap Suit Structural Scanner Enhanced Optical Array Advanced Melee Analysis Suite A0-MCA's Component Scanner > --- WEAPON ----------- Companion Sword > --- INVENTORY -------- ECM Suite Makeshift Hacking Suite EM Pulse Gun Advanced Assault Cannon DRS Beacon [Rating: 51] Favorites ----------- Power Light Ion Engine Engine Light Ion Engine Power Core Micro Nuclear Core Propulsion Light Treads Treads Light Treads Wheel Subdweller Monowheel Hover Unit Gravmag System Flight Unit VTOL Module Utility Structural Scanner Device Structural Scanner Storage Large Storage Unit Processor A0-MCA's Component Scanner Weapon Companion Sword Energy Gun Medium Laser Ballistic Gun Assault Rifle Ballistic Cannon Advanced Assault Cannon Slashing Weapon Companion Sword Build | -11 -10 -10 -9 -6 -6 -6 ------- Run | Yrd Mat Sub Scr Fac Was Fac Slots Evolved 8 | . . . . 8 . . Power 2 | . . . . 2 . . Propulsion 2 | . . . . 2 . . Utility 4 | . . . . 4 . . Weapon . | . . . . . . . Parts Attached 28 | 6 3 . 1 6 . 12 Power 7 | 1 . . . 1 . 5 Engine 3 | 1 . . . 1 . 1 Core 4 | . . . . . . 4 Reactor . | . . . . . . . Propulsion 7 | 2 . . . 1 . 4 Treads 2 | 2 . . . . . . Leg . | . . . . . . . Wheel 1 | . . . . 1 . . Hover 2 | . . . . . . 2 Flight 2 | . . . . . . 2 Utility 11 | 1 3 . . 4 . 3 Device 4 | . 2 . . 1 . 1 Storage 2 | 1 1 . . . . . Processor 5 | . . . . 3 . 2 Hackware . | . . . . . . . Protection . | . . . . . . . Artifact . | . . . . . . . Weapon 3 | 2 . . 1 . . . Energy Gun 1 | 1 . . . . . . Energy Cannon . | . . . . . . . Ballistic Gun 1 | 1 . . . . . . Ballistic Cannon . | . . . . . . . Launcher . | . . . . . . . Special Weapon . | . . . . . . . Impact Weapon . | . . . . . . . Slashing Weapon 1 | . . . 1 . . . Piercing Weapon . | . . . . . . . Special Melee Weapon . | . . . . . . . Unidentified Prototypes 1 | . . . 1 . . . Parts Lost 10 | . . . . . 2 8 Power 3 | . . . . . 1 2 Propulsion 4 | . . . . . 1 3 Utility 3 | . . . . . . 3 Weapon . | . . . . . . . Highest Loss Streak 5 | . . . . . 2 5 To Critical Strikes 2 | . . . . . . 2 Average Backups 8 | . 4 10 11 9 7 3 Power . | . 1 1 1 . . . Propulsion . | . . . 1 . . . Utility 5 | . 2 6 7 6 5 1 Weapon 1 | . 1 2 2 1 2 2 Tool/Special . | . . . . . . . Unused Backups 7 | . . . 1 . 4 2 Power . | . . . . . . . Propulsion . | . . . . . . . Utility 5 | . . . . . 4 1 Weapon 2 | . . . 1 . . 1 Tool/Special . | . . . . . . . Average Slot Usage (%) 79 | . 95 100 89 63 49 48 Engine 10 | . 14 14 14 11 8 . Treads 19 | . 27 28 28 11 . . Device 12 | . 10 14 14 12 13 10 Storage 10 | . 14 14 14 6 3 . Processor 5 | . . . . 11 13 19 Energy Gun 5 | . 14 14 4 . . . Ballistic Gun 5 | . 14 14 4 . . . Slashing Weapon 5 | . . . 9 6 6 6 Peak Build Rating 51 | 6 8 9 15 40 37 51 Average Rating 18 | 4 7 8 12 35 34 38 On Entrance 15 | . 6 8 9 15 37 30 Avg Prop Armor Cover (%) 10 | . . . . . . 10 Naked Turns . | . . . . . . . Heaviest Build 43 | 12 29 28 28 43 37 21 Greatest Support 40 | 40 40 40 40 40 20 18 Greatest Overweight (x) 12 | . 1 . . 1 12 5 Average Overweight (x) . | . . . . . 1 1 Largest Inventory Capacity 15 | 8 15 15 15 15 15 5 Average Capacity 12 | 6 14 15 15 15 11 5 Most Carried 15 | 2 9 11 15 15 11 5 Average Carried 9 | . 5 10 13 10 8 4 Final Capacity 15 | 8 15 15 15 15 5 5 Final Carried 15 | 2 9 11 15 11 5 5 Scrap Suit Usage (%) 19 | . . . . 97 100 43 Parts Cannibalized 1 | . . . . . . 1 Class Distribution -------------------- 90% | Mutant 3% | Scavenger-Mutant 3% | Infiltrator-Mutant Dominant Class ---------------- Mutant | -10/Materials Mutant | -10/Subcaves Mutant | -9/Scraptown Mutant | -6/Factory Mutant | -6/Waste Mutant | -6/Factory Resources | -11 -10 -10 -9 -6 -6 -6 ----------- Run | Yrd Mat Sub Scr Fac Was Fac Matter Collected 665 | 200 141 85 . . . 239 Remotely . | . . . . . . . Salvage Created 705 | . 46 . . . 205 454 Parts 38 | . 4 . . . 2 32 Haulers Intercepted . | . . . . . . . Recyclers Shooed . | . . . . . . . Parts Field Recycled . | . . . . . . . Retrieved Matter . | . . . . . . . Parts Self-Destructed 3 | . . 3 . . . . Prevented . | . . . . . . . Parts Restored . | . . . . . . . Kills | -11 -10 -10 -9 -6 -6 -6 ------- Run | Yrd Mat Sub Scr Fac Was Fac Combat Hostiles Destroyed 9 | . 3 . . . 1 5 Melee 5 | . . . . . . 5 Guns 3 | . 3 . . . . . AOE 1 | . . . . . 1 . Classes Destroyed 8 | . 1 . . . 1 6 Worker 2 | . . . . . . 2 Builder 1 | . . . . . . 1 Recycler 1 | . . . . . . 1 Watcher 1 | . . . . . . 1 Swarmer 4 | . 3 . . . . 1 Hunter 2 | . . . . . . 2 Programmer 2 | . . . . . . 2 Compactor 1 | . . . . . 1 . Best Kill Streak 3 | . 3 . . . 1 3 Combat Bots Only 3 | . 3 . . . 1 2 Max Kills in Single Turn 1 | . 1 . . . 1 1 Gunslinging . | . . . . . . . Exploded 1 | . . . . . 1 . Melee 1 | . . . . . . 1 Uniques/NPCs Destroyed . | . . . . . . . Combat | -11 -10 -10 -9 -6 -6 -6 -------- Run | Yrd Mat Sub Scr Fac Was Fac Hostile Shots Fired 149 | . 9 18 . . 6 116 Missed 36 | . 2 4 . . 1 29 Hits 113 | . 7 14 . . 5 87 Melee 5 | . . . . . 5 . Projectile 108 | . 7 14 . . . 87 Critical Strikes 5 | . . . . . 1 4 Damage Taken 2155 | . 52 278 . . 411 1414 Core 937 | . 20 58 . . 261 598 Absorbed by Shields . | . . . . . . . Regen/Repaired (Parts) 6 | . . . . . . 6 Core Remaining (%) 84 | 100 . . 68 . . . Volleys Fired 4 | . 4 . . . . . Largest 2 | . 2 . . . . . Hottest 70 | . 70 . . . . . Shots Fired 8 | . 8 . . . . . Gun 8 | . 8 . . . . . Cannon . | . . . . . . . Launcher . | . . . . . . . Special . | . . . . . . . Kinetic 4 | . 4 . . . . . Thermal 4 | . 4 . . . . . Explosive . | . . . . . . . Electromagnetic . | . . . . . . . Robot Hit Streak 3 | . 3 . . . . . Robot Miss Streak 3 | . 3 . . . . . Penetration Max . | . . . . . . . Secondary Targets 1 | . 1 . . . . . Max Gunslinging Chain 1 | . 1 . . . . . Shots Hit Robots 33 | . 4 . . . 3 26 Core Hits 17 | . 4 . . . 1 12 Critical Kills . | . . . . . . . Critical Parts Destroyed . | . . . . . . . Critical Strikes . | . . . . . . . Melee Attacks 41 | . . . . 1 3 37 Impact . | . . . . . . . Slashing 41 | . . . . 1 3 37 Piercing . | . . . . . . . Sneak Attacks 5 | . . . . . . 5 Combat Hostiles . | . . . . . . . Follow-up Attacks 1 | . . . . . . 1 Damage Inflicted 1428 | . 53 . . . 57 1318 Guns 52 | . 52 . . . . . Cannons . | . . . . . . . Explosions . | . . . . . . . Melee 1375 | . . . . . 57 1318 Ramming 1 | . 1 . . . . . Kinetic 13 | . 13 . . . . . Thermal 39 | . 39 . . . . . Explosive . | . . . . . . . Electromagnetic . | . . . . . . . Impact . | . . . . . . . Slashing 1375 | . . . . . 57 1318 Piercing . | . . . . . . . Highest Corruption 16 | . . . . . 16 16 Average Corruption 14 | . . . . . 9 16 Corruption Purged . | . . . . . . . Corruption Blocked . | . . . . . . . Effects 24 | . . . . . 3 21 Message Errors 6 | . . . . . 1 5 Matter Fused 6 | . . . . . . 6 Energy Discharges 2 | . . . . . . 2 Parts Rejected 2 | . . . . . 1 1 Parts Fused 2 | . . . . . . 2 Data Loss (minor) 4 | . . . . . 1 3 Data Loss (major) 1 | . . . . . . 1 Misdirections 1 | . . . . . . 1 Overload Shots . | . . . . . . . Overflow Damage 60 | . . . . . . 60 Projectiles . | . . . . . . . Explosions . | . . . . . . . Melee 60 | . . . . . . 60 Knockbacks . | . . . . . . . Impact . | . . . . . . . Kinetic . | . . . . . . . Secondary . | . . . . . . . Self-Inflicted Damage . | . . . . . . . Shots . | . . . . . . . Rammed 1 | . 1 . . . . . Targets Rammed 1 | . 1 . . . . . Kicked . | . . . . . . . Crushed . | . . . . . . . Highest Temperature 36 | . 36 . . . . . Average Temperature 19 | . 19 . . . . . Received Heat Transfer . | . . . . . . . Siege Activations . | . . . . . . . Martial Activations . | . . . . . . . Shielding Activations . | . . . . . . . Robots Disrupted . | . . . . . . . Combat Hostiles . | . . . . . . . Robots Corrupted . | . . . . . . . Combat Hostiles . | . . . . . . . Parts Fried . | . . . . . . . Impact Corruptions . | . . . . . . . Robots Melted . | . . . . . . . Combat Hostiles . | . . . . . . . Parts Melted . | . . . . . . . Heat Transferred 111 | . 111 . . . . . Parts Sabotaged . | . . . . . . . Parts Stolen . | . . . . . . . Parts Stripped . | . . . . . . . Power Chain Reactions . | . . . . . . . Alert | -11 -10 -10 -9 -6 -6 -6 ------- Run | Yrd Mat Sub Scr Fac Was Fac Maximum Alert Level . | . . . . . . . Low Security (%) 100 | 100 100 . . 100 100 100 Level 1 . | . . . . . . . Level 2 . | . . . . . . . Level 3 . | . . . . . . . Level 4 . | . . . . . . . Level 5 . | . . . . . . . High Security . | . . . . . . . Max Security . | . . . . . . . Peak Influence 125 | . 60 . . 1 . 125 Initial . | . . . . . . . Average 13 | . 15 . . . . 23 Influence Increases 408 | . 75 . . 1 . 332 Destroy 0b10 Robot/C 240 | . 60 . . . . 180 Destroy 0b10 Robot/NC 25 | . . . . . . 25 Destroy Leader 62 | . 10 . . . . 52 Allied During Kill 33 | . . . . . . 33 Successful Hack 28 | . 5 . . . . 23 Destroy Structure 5 | . . . . 1 . 4 Lose Combat Pursuer 15 | . . . . . . 15 Influence Decreases 373 | . 75 . . 1 . 297 Time Decay 223 | . 75 . . 1 . 147 Lost Part 70 | . . . . . . 70 Lost Ally 80 | . . . . . . 80 Squads Dispatched 6 | . 3 . . 1 . 2 Investigation 2 | . 2 . . . . . Extermination . | . . . . . . . Reinforcement 4 | . 1 . . 1 . 2 Assault . | . . . . . . . Garrison . | . . . . . . . Intercept . | . . . . . . . Searches Triggered . | . . . . . . . Construction Impeded . | . . . . . . . Haulers Reinforced . | . . . . . . . Active Scanning Responses . | . . . . . . . Cargo Convoy Interrupts . | . . . . . . . Stealth | -11 -10 -10 -9 -6 -6 -6 --------- Run | Yrd Mat Sub Scr Fac Was Fac Distress Signals 2 | . 1 . . . . 1 Communications Jammed . | . . . . . . . Distress Signals . | . . . . . . . Times Spotted 24 | . 5 1 . 1 6 11 Peak Tracking Total 6 | . 3 1 . . 6 3 Tactical Retreats 1 | . . . . . . 1 Traps | -11 -10 -10 -9 -6 -6 -6 ------- Run | Yrd Mat Sub Scr Fac Was Fac Traps Triggered 3 | . 2 . . 1 . . Indirectly . | . . . . . . . Trap Hack Attempts . | . . . . . . . Triggered . | . . . . . . . Disarmed . | . . . . . . . Reprogrammed . | . . . . . . . Reused 1 | . . . . . 1 . Traps Extracted . | . . . . . . . Installed 1 | . . . . . 1 . Triggered . | . . . . . . . Most Traps Carried 1 | . . . 1 1 1 . Machines | -11 -10 -10 -9 -6 -6 -6 ---------- Run | Yrd Mat Sub Scr Fac Was Fac Machines Disabled . | . . . . . . . Max in Single Turn . | . . . . . . . Machines Repaired . | . . . . . . . Machines Dismantled . | . . . . . . . Machines Sabotaged . | . . . . . . . Overloaded Fab Kills . | . . . . . . . Hacking | -11 -10 -10 -9 -6 -6 -6 --------- Run | Yrd Mat Sub Scr Fac Was Fac Machines Accessed 12 | . 3 . 6 1 . 2 Terminals 3 | . 2 . . . . 1 Fabricators 1 | . . . . . . 1 Repair Stations 1 | . . . . 1 . . Recycling Units 1 | . 1 . . . . . Scanalyzers . | . . . . . . . Garrison Access . | . . . . . . . Total Hacks 48 | . 7 . 36 2 . 3 Successful 41 | . 2 . 36 1 . 2 Failed 7 | . 5 . . 1 . 1 Catastrophic . | . . . . . . . Database Lockouts . | . . . . . . . Manual 5 | . 5 . . . . . Terminals 7 | . 5 . . . . 2 Fabricators 1 | . . . . . . 1 Repair Stations 2 | . . . . 2 . . Recycling Units 2 | . 2 . . . . . Scanalyzers . | . . . . . . . Garrison Access . | . . . . . . . Terminal Hacks 37 | . . . 36 . . 1 Record 30 | . . . 30 . . . Robot Analysis 5 | . . . 5 . . . Open Door 1 | . . . 1 . . . Hauler Manifests 1 | . . . . . . 1 Fabricator Hacks 1 | . . . . . . 1 Build 1 | . . . . . . 1 Repair Station Hacks 1 | . . . . 1 . . Scan Component 1 | . . . . 1 . . Recycling Unit Hacks 1 | . 1 . . . . . Retrieve Matter 1 | . 1 . . . . . Scanalyzer . | . . . . . . . Garrison Access Hacks . | . . . . . . . Unauthorized Hacks 1 | . 1 . . . . . Terminals 1 | . 1 . . . . . Botnet 1 | . 1 . . . . . Fabricators . | . . . . . . . Repair Stations . | . . . . . . . Recycling Units . | . . . . . . . Scanalyzers . | . . . . . . . Garrison Access . | . . . . . . . Data Cores Recovered 1 | . 1 . . . . . Used . | . . . . . . . Hacking Detections 4 | . 3 . . . . 1 Full Trace Events . | . . . . . . . Feedback Events . | . . . . . . . Feedback Blocked . | . . . . . . . Robot Schematics Acquired . | . . . . . . . Robots Built 4 | . . . . . . 4 Authchips . | . . . . . . . Time 134 | . . . . . . 134 Total Robot Build Rating 16 | . . . . . . 16 Part Schematics Acquired . | . . . . . . . Parts Built . | . . . . . . . Authchips . | . . . . . . . Time . | . . . . . . . Total Part Build Rating . | . . . . . . . Part Studies Acquired . | . . . . . . . Parts Repaired . | . . . . . . . Time . | . . . . . . . Parts Recycled . | . . . . . . . Recycled Matter . | . . . . . . . Retrieved Matter . | . . . . . . . Retrieved Components . | . . . . . . . Parts Scanalyzed . | . . . . . . . Part Schematics Acquired . | . . . . . . . Parts Damaged . | . . . . . . . Bothacking | -11 -10 -10 -9 -6 -6 -6 ------------ Run | Yrd Mat Sub Scr Fac Was Fac Used RIF Installer . | . . . . . . . Robots Hacked . | . . . . . . . Non-combat . | . . . . . . . Combat . | . . . . . . . Robot Hacks Applied . | . . . . . . . Relay Couplers Released . | . . . . . . . Fabnet Peak Effective % . | . . . . . . . Robots Rewired . | . . . . . . . Allies Hacked . | . . . . . . . Hacks Repelled . | . . . . . . . Allies | -11 -10 -10 -9 -6 -6 -6 -------- Run | Yrd Mat Sub Scr Fac Was Fac Total Allies 4 | . . . . . . 4 Largest Group 4 | . . . . . . 4 Highest-Rated Group 48 | . . . . . . 48 Highest-Rated Ally 12 | . . . . . . 12 Initial UFD Resources 22 | . . . . 22 22 22 Total Orders . | . . . . . . . Ally Attacks 33 | . . . . . . 33 Total Damage 346 | . . . . . . 346 Kills 4 | . . . . . . 4 Allies Corrupted . | . . . . . . . Allies Melted . | . . . . . . . Intel | -11 -10 -10 -9 -6 -6 -6 ------- Run | Yrd Mat Sub Scr Fac Was Fac Active Infowar (turns) 2026 | . 210 265 879 103 130 439 Optics 665 | . . . . 96 130 439 Structural 1614 | . 58 265 879 103 130 179 Cloaking 66 | . . . . . . 66 ECM 198 | . 152 . . . . 46 Robot Analysis Total 5 | . . . 5 . . . Derelict Logs Recovered . | . . . . . . . Drone Launches . | . . . . . . . Drone Recoveries . | . . . . . . . Exploration | -11 -10 -10 -9 -6 -6 -6 ------------- Run | Yrd Mat Sub Scr Fac Was Fac Turns Passed 2187 | 91 280 265 879 103 130 439 Spaces Moved 1268 | 52 155 165 539 54 89 214 Core 167 | 2 . . . . 31 134 Treads 955 | 50 155 165 539 46 . . Legs . | . . . . . . . Wheels 66 | . . . . 8 58 . Hover 80 | . . . . . . 80 Flight . | . . . . . . . Fastest Speed 50 | 50 160 160 160 120 120 56 Average Speed 156 | 155 160 160 160 167 136 146 Slowest Speed 650 | 160 240 160 160 240 650 300 Overloaded Moves . | . . . . . . . Propulsion Burnouts . | . . . . . . . Robots Hopped . | . . . . . . . Potential Cave-ins . | . . . . . . . Cave-ins Triggered . | . . . . . . . Exploration Rate (%) 28 | 4 42 11 42 3 90 7 Regions Visited 6 Branch Regions 2 Pre-discovered Areas . | . . . . . . . Known Exits Taken . | . . . . . . . Unknown Exits Taken 4 | 1 1 1 1 . . . Scrap Searched 1 | . . 1 . . . . Spaces Dug 5 | . . . . 1 . 4 Terrain Destroyed 5 | . . . . 1 . 4 Melee 5 | . . . . 1 . 4 Projectile . | . . . . . . . AOE . | . . . . . . . Terrain Rammed . | . . . . . . . Walls Destroyed . | . . . . . . . Machines Disabled . | . . . . . . . Actions | -11 -10 -10 -9 -6 -6 -6 --------- Run | Yrd Mat Sub Scr Fac Was Fac Total 1402 | 59 175 166 558 68 93 283 Wait 27 | . 1 . 10 . . 16 Move 1263 | 51 154 164 538 54 88 214 Hop . | . . . . . . . Pick Up 15 | 2 6 2 4 1 . . Fast Attach 27 | 6 6 . 1 1 1 12 Attach 6 | . . . . 5 . 1 Detach 9 | . 2 . 2 4 . 1 Swap . | . . . . . . . Drop 9 | . 1 . 3 2 . 3 Fire 4 | . 4 . . . . . Melee 40 | . . . . 1 3 36 Ram . | . . . . . . . Kick . | . . . . . . . Crush 1 | . 1 . . . . . Escape Stasis . | . . . . . . . Rewire . | . . . . . . . Trap 1 | . . . . . 1 . Miscellaneous . | . . . . . . . Route ------- -11/Scrapyard -10/Materials (discovered 2 exits: [*Mat] / [*Sub]) -10/Subcaves (discovered 2 exits: *Scr x2) -9/Scraptown -6/Factory -6/Waste -6/Factory History --------- Turn | Location | Event 12 | -11/Scrapyard | Discovered new exit (range 15) 92 | -11/Scrapyard | Entered Materials 93 | -10/Materials | Met a group of wandering Federalists 240 | -10/Materials | Discovered new exit (range 15) 294 | -10/Materials | Discovered new exit (range 16) 351 | -10/Materials | Build established: Mutant 372 | -10/Materials | Entered Subcaves 373 | -10/Subcaves | Continued accompanying wandering Federalists (3) 373 | -10/Subcaves | Approached by a straggling Scientist 432 | -10/Subcaves | Disturbed a concealed Subdweller 593 | -10/Subcaves | Scientist uncovered a shortcut to Scraptown 637 | -10/Subcaves | Entered Scraptown 690 | -9/Scraptown | Visited Bundlers 713 | -9/Scraptown | Visited Symbiants 769 | -9/Scraptown | Visited The Evicted 815 | -9/Scraptown | Visited UFD Registry 815 | -9/Scraptown | Registered with UFD as "Roughslicer" 877 | -9/Scraptown | Visited Sword Containment 894 | -9/Scraptown | Found Prototype Slashing Weapon 894 | -9/Scraptown | Identified Companion Sword 936 | -9/Scraptown | Visited Chapter 10 999 | -9/Scraptown | Visited Derelict Rescue Squad 1008 | -9/Scraptown | Found DRS Beacon 1080 | -9/Scraptown | Found Scrap Suit 1142 | -9/Scraptown | Discovered new exit (range 5) 1194 | -9/Scraptown | Visited Science Guys 1252 | -9/Scraptown | Visited A0-MCA Data Center 1262 | -9/Scraptown | Given a C+ rating by A0-MCA 1268 | -9/Scraptown | Found A0-MCA's Component Scanner 1310 | -9/Scraptown | Visited Analyses Database 1361 | -9/Scraptown | Met Optimus 1361 | -9/Scraptown | Accepted into 0bPrime 1427 | -9/Scraptown | Visited Abandonware Association 1516 | -9/Scraptown | Entered Factory 1516 | -6/Factory | Evolved 8 slots: Power x2, Propulsion x2, Utility x4 1619 | -6/Factory | Sucked down chute 1619 | -6/Factory | Entered Waste 1627 | -6/Waste | Spotted C-40 Crusher 1628 | -6/Waste | Spotted C-40 Crusher 1634 | -6/Waste | EMP discharged 1639 | -6/Waste | Spotted C-40 Crusher 1661 | -6/Waste | Spotted C-40 Crusher 1672 | -6/Waste | Spotted C-40 Crusher 1679 | -6/Waste | Spotted C-40 Crusher 1694 | -6/Waste | Crushed by Compactor (1 part destroyed) 1697 | -6/Waste | Crushed by Compactor (0 parts destroyed, 2 dropped) 1709 | -6/Waste | Destroyed C-40 Crusher 1734 | -6/Waste | EMP discharged 1734 | -6/Waste | System corruption reached 10% 1736 | -6/Waste | Discovered new exit (range 10) 1749 | -6/Waste | Entered Factory 1910 | -6/Factory | Fabricated S-27 Virus? 2046 | -6/Factory | Lost 3 allies 2056 | -6/Factory | Core integrity fell below 50% 2121 | -6/Factory | Lost 5 parts (2p1n2u) 2168 | -6/Factory | Core integrity fell below 20% 2188 | -6/Factory | Destroyed by H-66 Slayer with Heavy Assault Rifle Last Messages --------------- 02175_ Cloaking Device destroyed. 02175_ Slug penetrates Wall. 02176_ R-10 Processor collects Angular Momentum Engine. 02176_ H-66 Slayer destroyed. 02178_ Slug penetrates Wall. 02180_ System corrupted: Matter fused (-10). 02180_ Acquired Lgt. Fission Core. 02180_ R-10 Processor collects Flexi-carbon Leg. 02181_ Acquired 38 matter. 02182_ Slug penetrates Wall. 02183_ U-05 Engineer builds a Door. 02185_ R-10 Processor collects Targeting Computer. 02185_ Slug penetrates Wall. 02185_ R-10 Processor collects Targeting Computer. 02187_ Wall collapses. 02188_ R-10 Processor collects Phase Shifter. 02188_ Penetrated by Slug. Map ----- +----------------------------------------------------+ | # """ """ ##?????????? | | ############+######### """ """ ##?????????? | | #######[ ### """ """ ! ##?????????? | | ##???## ### ##?????????? | | ##???##* ### """ """ ##?????????? | | ##???## ### """ """ ##?????????? | | ##???## """ ### """ """ ##?????????? | | ##???## """"" + / ##?????????? | | ##???## """"" #################?????????? | | ##???## #################?????????? | | ^##???## """ ##????????????????????????? | | ^ ##???## """"" ##????????????????????????? | | ##???## """"" ##????????????????????????? | | #######! ##????????????????????????? | | #####################????????????????????????? | | # ########????????????????????????? | | # """"" ##???????????###????????????????? | | # ""T"" ##??????????? #????????????????? | | +% !!##??????????]! #????????????????? | | # !##??????????]! ?????????????????? | | # ! ##??????????!! ??#??????????????? | | # ##?????????? ?? #??????????????? | | ##### """ """" ##?????????? ?? #??????????????? | | # """" """" ##????????##+### #????? #??????? | | # """" """" ########### # """???????? | | = # """" """" + %h@R u + """#??????? | | # % ########;uR #??????????????? | | ### ############????## ^ #??????????????? | | """ ###############??????# #??????????????? | | """ ######?????########### #??????????????? | | """ + ^]] ####???????????? | | """ ##?????????########### ]]]! / """ ??????? | | """ ##???????????????????# ]]! # """???????? | | """ ##???????????????????# # #??? | | ?? ##???????????????????# + """ ?????? | | ?? ##???????????????????# ######## """ ?????? | | #????????????????????????# #??????????"???????? | | #????????????????????????# #??????????????????? | | ?????????????????????????# #??????????????????? | | ?????????????????????????# ??????????????????? | | ?????????????????????????#######?????????????????? | | ?????????????????????????????????????????????????? | | ?????????????????????????????????????????????????? | | ?????????????????????????????????????????????????? | | ?????????????????????????????????????????????????? | | ?????????????????????????????????????????????????? | | ?????????????????????????????????????????????????? | | ?????????????????????????????????????????????????? | | ?????????????????????????????????????????????????? | | ?????????????????????????????????????????????????? | +----------------------------------------------------+ Best States ------------- Heat Dissipation 37 Energy Generation 25 Energy Capacity 300 Matter Stores 300 Matter Capacity 300 Sight Range 22 Terrain Scan Density 10 ECM Strength 1 Cloak Strength 2 Evasion (%) 53 Melee Accuracy 14 Recoil Reduction 2 Item Schematics ----------------- None Robot Schematics ------------------ None Fabricated ------------ S-27 Virus | x4 | -6/Factory | Preloaded Repaired ---------- Nothing Studied --------- None Alien Tech Used ----------------- None Achievements -------------- Civilization 2243 DATA ERROR: Steam Global Achievement% For Emergencies Only Link The Feds Nice Directions, Buddy Organ Harvest Overwhelming Spot Them First Strength In Numbers Challenges ------------ None Game ------ Seed EnhancedMagneticTorch Manual? 0 Play Time 00:53:29 Cumulative 62.7 hours Start 2026.02.14 @ 14:02:44 End 2026.02.14 @ 15:10:40 Sessions 1 Manual Loads 0 Difficulty Rogue Special Mode None Game No. 24 Rogue 23 Adventurer 1 Explorer 0 Win Type - Total 0 Types 0/0/0/0/0/0/0/0/0/0 Lore% 11 Gallery% 30 Achievement% 16 Wizard Run 0 Options --------- Layout 2 ASCII 0 Keyboard 1 Movement Numpad Keybinds 0 Fullscreen 1 Font 24/Terminus Map View 50x44 Zoom Use 0% Tactical HUD 1 Map Filters NONE Filters LOW_CONTRAST(13,24,33) Steam 1 RUN: 97bcb028-1593-49cc-b2c3-d9bbb3eb720e